fUSD/lending_fUSD_20250607
["ID","MTS","AMOUNT","RATE_DAILY","PERIOD"]
[364847220,1749274242502,-151.0,0.00026942,7]
[364847221,1749274242511,-151.0,0.00026942,7]
[364847222,1749274242521,-151.0,0.00026942,7]
[364847223,1749274242532,-151.0,0.00026942,7]
[364847224,1749274242542,-151.0,0.00026942,7]
[364847225,1749274242552,-151.0,0.00026942,7]
[364847226,1749274242562,-151.0,0.00026942,7]
[364847227,1749274242571,-252.148778,0.00026942,7]
[364847229,1749274242584,-350.109708,0.00026942,7]
[364847230,1749274242594,-350.109708,0.00026942,7]
[364847231,1749274242603,-348.51027408,0.00026945,2]
[364847232,1749274242613,-300.0,0.00026951,10]
[364847233,1749274242708,-300.0,0.00026951,10]
[364847234,1749274242718,-151.0,0.00026952,7]
[364847235,1749274242726,-10100.3766471,0.00026952,2]
[364847236,1749274242735,-222.13349,0.00026952,7]
[364847237,1749274242744,-222.13349,0.00026952,7]
[364847238,1749274242754,-1554.807314,0.00026952,7]
[364847239,1749274242764,-1554.807314,0.00026952,7]
[364847240,1749274242773,-603.389432,0.00026952,7]
[364847241,1749274242783,-645.346851,0.00026952,7]
[364847242,1749274242792,-603.389432,0.00026952,7]
[364847243,1749274242801,-493.964404,0.00026952,7]
[364847244,1749274242810,-493.964404,0.00026952,7]
[364847245,1749274242820,-151.0,0.00026952,7]
[364847246,1749274242830,-645.346851,0.00026952,7]
[364847247,1749274242839,-151.0,0.00026952,7]
[364847248,1749274242850,-151.0,0.00026952,7]
[364847249,1749274242860,-152.202376,0.00026952,7]
[364847250,1749274242869,-151.0,0.00026952,7]
[364847251,1749274242879,-151.0,0.00026952,7]
[364847253,1749274242888,-151.0,0.00026952,7]
[364847255,1749274242898,-151.0,0.00026952,7]
[364847257,1749274242907,-350.109708,0.00026952,7]
[364847259,1749274242916,-350.109708,0.00026952,7]
[364847261,1749274242926,-11731.65577306,0.00026956,2]
[364847263,1749274242936,-1552.12973,0.00026961,2]
[364847265,1749274242945,-206.4713193,0.00026965,2]
[364847266,1749274242955,-758.17982996,0.00026969,16]
[364847267,1749274242964,-10934.10309202,0.00026971,2]
[364847268,1749274242973,-1791.0,0.00026971,2]
[364847269,1749274242983,-1159.69732637,0.00026972,2]
[364847270,1749274242993,-500.0,0.00026973,2]
[364847271,1749274243003,-163.52308715,0.00026973,2]
[364847272,1749274243019,-500.68927136,0.00026973,2]
[364847273,1749274243030,-156.18083481,0.00026973,2]
[364847274,1749274243040,-166.93116618,0.00026973,2]
[364847275,1749274243051,-521.90253048,0.00026973,2]
[364847276,1749274243060,-502.19789294,0.00026973,2]
[364847277,1749274243071,-168.20676347,0.00026973,2]
[364847278,1749274243081,-504.88878207,0.00026973,2]
[364847279,1749274243090,-500.0,0.00026973,2]
[364847281,1749274243099,-500.0,0.00026973,2]
[364847282,1749274243109,-199.76676848,0.00026973,2]
[364847283,1749274243119,-500.0,0.00026973,2]
[364847284,1749274243128,-500.46172288,0.00026973,2]
[364847285,1749274243138,-500.0,0.00026973,2]
[364847286,1749274243147,-160.90331576,0.00026975,2]
[364847287,1749274243159,-150.0,0.00026977,2]
[364847288,1749274243169,-967.22827589,0.0002698,2]
[364847289,1749274243179,-225.72,0.00026981,2]
[364847290,1749274243189,-151.0,0.00026982,7]
[364847291,1749274243199,-151.0,0.00026982,7]
[364847292,1749274243209,-151.0,0.00026982,7]
[364847293,1749274243219,-168.948959,0.00026982,7]
[364847294,1749274243228,-151.0,0.00026982,7]
[364847295,1749274243238,-151.0,0.00026982,7]
[364847296,1749274243248,-151.0,0.00026982,7]
[364847297,1749274243258,-151.0,0.00026982,7]
[364847298,1749274243268,-151.0,0.00026982,7]
[364847299,1749274243277,-1030.373222,0.00026982,7]
[364847301,1749274243287,-1030.373222,0.00026982,7]
[364847303,1749274243296,-1310.956622,0.00026982,7]
[364847305,1749274243305,-1310.956622,0.00026982,7]
[364847307,1749274243315,-316.849758,0.00026982,7]
[364847308,1749274243325,-316.849758,0.00026982,7]
[364847309,1749274243334,-151.0,0.00026982,7]
[364847311,1749274243344,-151.0,0.00026982,7]
[364847313,1749274243354,-12124.39,0.00026983,2]
[364847315,1749274243363,-410.68248293,0.00026986,30]
[364847317,1749274243372,-454.54,0.00026991,2]
[364847319,1749274243381,-157.66334024,0.00026996,2]
[364847321,1749274243390,-289.83089557,0.00026996,2]
[364847323,1749274243400,-2000.0,0.00027,2]
[364847325,1749274243410,-866887.31027122,0.00027,2]
[364847327,1749274243419,-500.0,0.00027,2]
[364847329,1749274243429,-2000.0,0.00027,2]
[364847331,1749274243438,-2000.0,0.00027,2]
[364847333,1749274243448,-151.0,0.00027,7]
[364847335,1749274243458,-151.0,0.00027,7]
[364847337,1749274243467,-151.0,0.00027,7]
[364847339,1749274243477,-151.0,0.00027,7]
[364847341,1749274243487,-151.0,0.00027,7]
[364847343,1749274243497,-207.852747,0.00027,7]
[364847344,1749274243506,-207.852747,0.00027,7]
[364847347,1749274243515,-151.0,0.00027,7]
[364847348,1749274243526,-167.857019,0.00027,7]
[364847350,1749274243535,-167.857019,0.00027,7]
[364847352,1749274243545,-151.0,0.00027,7]
[364847354,1749274243554,-290.056007,0.00027,7]
[364847356,1749274243563,-250.0,0.00027,2]
[364847359,1749274243574,-72652.19210086,0.00027,2]
[364847361,1749274243588,-1004.0718058,0.00027,2]
[364847363,1749274243598,-268.54453277,0.00027,2]
[364847365,1749274243607,-228072.04517319,0.00027,2]
[364847367,1749274243617,-966.9458554,0.00027,2]
[364847369,1749274243628,-1000.0,0.00027,2]
[364847371,1749274243638,-4687.8390578,0.00027008,2]
[364847373,1749274243648,-150.98544314,0.00027014,30]
[364847375,1749274243658,-176.0067784,0.00027014,30]
[364847377,1749274243668,-163.22,0.00027022,2]
[364847379,1749274243678,-366551.6055725,0.00027026,2]
[364847381,1749274243688,-1033.015291,0.00027026,2]
[364847383,1749274243698,-150.0,0.00027036,2]
[364847385,1749274243708,-11731.65577306,0.00027044,2]
[364847387,1749274243717,-150.0,0.00027048,2]
[364847389,1749274243727,-150.0,0.00027053,2]
[364847391,1749274243736,-151.0,0.00027061,18]
[364847393,1749274243747,-35878.345746,0.00027063,2]
[364847395,1749274243756,-150.0,0.00027071,2]
[364847397,1749274243766,-161.05896029,0.00027073,2]
[364847399,1749274243775,-511.83643538,0.00027073,2]
[364847401,1749274243785,-500.0,0.00027073,2]
[364847403,1749274243795,-500.0,0.00027073,2]
[364847405,1749274243805,-500.0,0.00027073,2]
[364847407,1749274243815,-153.43221915,0.00027073,2]
[364847409,1749274243825,-500.0,0.00027073,2]
[364847411,1749274243834,-500.0,0.00027073,2]
[364847413,1749274243844,-500.0,0.00027073,2]
[364847415,1749274243854,-500.0,0.00027073,2]
[364847417,1749274243863,-500.0,0.00027073,2]
[364847418,1749274243872,-150.0,0.00027073,2]
[364847420,1749274243882,-155.45224996,0.00027073,2]
[364847422,1749274243891,-500.0,0.00027073,2]
[364847424,1749274243901,-500.0,0.00027073,2]
[364847426,1749274243910,-150.0,0.00027073,2]
[364847428,1749274243919,-500.0,0.00027073,2]
[364847430,1749274243928,-150.0,0.00027073,2]
[364847432,1749274243936,-500.0,0.00027073,2]
[364847434,1749274243946,-150.0,0.00027073,2]
[364847436,1749274243955,-500.0,0.00027073,2]
[364847438,1749274243964,-1671.0,0.00027073,2]
[364847440,1749274243974,-1120.0,0.00027073,2]
[364847442,1749274243984,-150.0,0.00027074,2]
[364847444,1749274243994,-500.0,0.00027076,7]
[364847446,1749274244003,-500.0,0.00027076,7]
[364847448,1749274244013,-500.0,0.00027076,7]
[364847450,1749274244022,-150.0,0.00027076,7]
[364847452,1749274244032,-500.0,0.00027076,7]
[364847454,1749274244041,-500.0,0.00027076,7]
[364847456,1749274244051,-500.0,0.00027076,7]
[364847458,1749274244060,-150.0,0.00027076,7]
[364847460,1749274244070,-500.0,0.00027076,7]
[364847463,1749274244081,-150.0,0.00027076,7]
[364847465,1749274244090,-150.0,0.00027077,2]
[364847468,1749274244099,-151.0,0.0002708,7]
[364847470,1749274244108,-151.0,0.0002708,7]
[364847472,1749274244118,-151.0,0.0002708,7]
[364847474,1749274244127,-151.0,0.0002708,7]
[364847476,1749274244136,-151.777042,0.0002708,7]
[364847478,1749274244146,-151.0,0.0002708,7]
[364847480,1749274244155,-151.0,0.0002708,7]
[364847482,1749274244166,-151.0,0.00027081,7]
[364847484,1749274244175,-151.0,0.00027081,7]
[364847486,1749274244185,-151.0,0.00027081,7]
[364847488,1749274244194,-151.0,0.00027081,7]
[364847490,1749274244203,-151.0,0.00027081,7]
[364847492,1749274244213,-151.0,0.00027081,7]
[364847494,1749274244223,-11358.5469505,0.00027081,2]
[364847496,1749274244232,-23414.9336032,0.00027081,2]
[364847498,1749274244242,-176.0067784,0.00027096,30]
[364847500,1749274244251,-410.68248293,0.00027096,30]
[364847502,1749274244261,-150.0,0.00027097,2]
[364847504,1749274244270,-2340.85,0.000271,2]
[364847505,1749274244279,-895.060117,0.000271,7]
[364847507,1749274244288,-895.060117,0.000271,7]
[364847509,1749274244298,-151.0,0.000271,7]
[364847511,1749274244307,-151.0,0.000271,7]
[364847513,1749274244316,-151.0,0.000271,7]
[364847515,1749274244325,-37793.14153491,0.000271,2]
[364847517,1749274244334,-350.109708,0.000271,7]
[364847519,1749274244344,-350.109708,0.000271,7]
[364847521,1749274244353,-500.0,0.000271,2]
[364847523,1749274244363,-150.0,0.000271,2]
[364847525,1749274244371,-500.0,0.000271,2]
[364847527,1749274244381,-500.0,0.000271,2]
[364847529,1749274244391,-500.0,0.000271,2]
[364847531,1749274244400,-150.0,0.000271,2]
[364847533,1749274244409,-350.39756868,0.000271,2]
[364847535,1749274244419,-500.0,0.000271,2]
[364847537,1749274244428,-1671.0,0.000271,2]
[364847539,1749274244437,-1120.0,0.000271,2]
[364847541,1749274244447,-500.0,0.00027103,7]
[364847543,1749274244456,-500.0,0.00027103,7]
[364847545,1749274244466,-500.0,0.00027103,7]
[364847547,1749274244475,-255.00578496,0.00027103,7]
[364847549,1749274244484,-500.0,0.00027103,7]
[364847550,1749274244493,-500.0,0.00027103,7]
[364847552,1749274244502,-500.0,0.00027103,7]
[364847554,1749274244512,-201.6572608,0.00027103,7]
[364847556,1749274244521,-500.0,0.00027103,7]
[364847558,1749274244530,-206.02997179,0.00027103,7]
[364847560,1749274244539,-503.0,0.00027108,2]
[364847562,1749274244548,-150.0,0.00027108,2]
[364847564,1749274244557,-150.0,0.0002711,2]
[364847566,1749274244566,-200.0,0.00027113,2]
[364847568,1749274244575,-151.0,0.00027123,7]
[364847570,1749274244586,-151.0,0.00027123,7]
[364847572,1749274244595,-170.184927,0.00027123,7]
[364847574,1749274244604,-1563.367253,0.00027123,7]
[364847576,1749274244613,-1563.367253,0.00027123,7]
[364847578,1749274244626,-170.184927,0.00027123,7]
[364847580,1749274244635,-151.0,0.00027123,7]
[364847582,1749274244645,-280.992215,0.00027123,7]
[364847584,1749274244654,-280.992215,0.00027123,7]
[364847586,1749274244664,-216.293326,0.00027123,7]
[364847588,1749274244674,-216.293326,0.00027123,7]
[364847590,1749274244683,-1833.26369,0.00027123,7]
[364847592,1749274244692,-179.340194,0.00027123,7]
[364847594,1749274244702,-179.340194,0.00027123,7]
[364847596,1749274244711,-151.0,0.00027123,7]
[364847598,1749274244720,-151.0,0.00027123,7]
[364847600,1749274244730,-151.0,0.00027123,7]
[364847602,1749274244739,-10000.0,0.00027123,7]
[364847604,1749274244748,-10000.0,0.00027123,7]
[364847606,1749274244758,-151.0,0.00027123,7]
[364847608,1749274244767,-300.853411,0.00027123,7]
[364847610,1749274244777,-300.853411,0.00027123,7]
[364847612,1749274244786,-151.0,0.00027123,7]
[364847613,1749274244795,-151.0,0.00027123,7]
[364847616,1749274244805,-151.0,0.00027123,7]
[364847618,1749274244815,-151.0,0.00027123,7]
[364847620,1749274244826,-222.13349,0.00027123,7]
[364847621,1749274244835,-222.13349,0.00027123,7]
[364847623,1749274244845,-354.436695,0.00027123,7]
[364847626,1749274244856,-354.436695,0.00027123,7]
[364847628,1749274244869,-1554.807314,0.00027123,7]
[364847630,1749274244879,-1554.807314,0.00027123,7]
[364847631,1749274244888,-603.389432,0.00027123,7]
[364847634,1749274244898,-645.346851,0.00027123,7]
[364847635,1749274244907,-603.389432,0.00027123,7]
[364847636,1749274244917,-493.964404,0.00027123,7]
[364847637,1749274244926,-151.0,0.00027123,7]
[364847638,1749274244935,-493.964404,0.00027123,7]
[364847639,1749274244945,-151.0,0.00027123,7]
[364847640,1749274244954,-645.346851,0.00027123,7]
[364847641,1749274244963,-151.0,0.00027123,7]
[364847642,1749274244971,-151.0,0.00027123,7]
[364847643,1749274244981,-151.0,0.00027123,7]
[364847644,1749274244990,-151.0,0.00027123,7]
[364847645,1749274244999,-153.0,0.00027123,2]
[364847646,1749274245009,-153.0,0.00027123,2]
[364847647,1749274245018,-153.0,0.00027123,2]
[364847649,1749274245027,-153.0,0.00027123,2]
[364847650,1749274245036,-153.0,0.00027123,2]
[364847652,1749274245045,-153.0,0.00027123,2]
[364847654,1749274245055,-153.0,0.00027123,2]
[364847656,1749274245064,-153.0,0.00027123,2]
[364847658,1749274245074,-153.0,0.00027123,2]
[364847660,1749274245084,-153.0,0.00027123,2]
[364847662,1749274245093,-153.0,0.00027123,2]
[364847664,1749274245102,-153.0,0.00027123,2]
[364847666,1749274245111,-153.0,0.00027123,2]
[364847668,1749274245120,-153.0,0.00027123,2]
[364847670,1749274245130,-153.0,0.00027123,2]
[364847672,1749274245139,-153.0,0.00027123,2]
[364847674,1749274245149,-153.0,0.00027123,2]
[364847676,1749274245158,-153.0,0.00027123,2]
[364847678,1749274245167,-153.0,0.00027123,2]
[364847680,1749274245176,-153.0,0.00027123,2]
[364847682,1749274245187,-153.0,0.00027123,2]
[364847684,1749274245196,-153.0,0.00027123,2]
[364847686,1749274245205,-153.0,0.00027123,2]
[364847688,1749274245215,-153.0,0.00027123,2]
[364847690,1749274245224,-153.0,0.00027123,2]
[364847692,1749274245234,-153.0,0.00027123,2]
[364847694,1749274245243,-153.0,0.00027123,2]
[364847696,1749274245252,-153.0,0.00027123,2]
[364847698,1749274245262,-153.0,0.00027123,2]
[364847700,1749274245271,-153.0,0.00027123,2]
[364847702,1749274245281,-153.0,0.00027123,2]
[364847703,1749274245290,-153.0,0.00027123,2]
[364847705,1749274245299,-153.0,0.00027123,2]
[364847707,1749274245308,-153.0,0.00027123,2]
[364847709,1749274245318,-153.0,0.00027123,2]
[364847711,1749274245327,-153.0,0.00027123,2]
[364847713,1749274245337,-153.0,0.00027123,2]
[364847715,1749274245347,-153.0,0.00027123,2]
[364847717,1749274245357,-153.0,0.00027123,2]
[364847719,1749274245366,-153.0,0.00027123,2]
[364847721,1749274245376,-153.0,0.00027123,2]
[364847723,1749274245385,-153.0,0.00027123,2]
[364847725,1749274245395,-153.0,0.00027123,2]
[364847727,1749274245405,-153.0,0.00027123,2]
[364847729,1749274245414,-153.0,0.00027123,2]
[364847731,1749274245423,-153.0,0.00027123,2]
[364847733,1749274245433,-153.0,0.00027123,2]
[364847735,1749274245442,-153.0,0.00027123,2]
[364847737,1749274245451,-153.0,0.00027123,2]
[364847739,1749274245461,-153.0,0.00027123,2]
[364847741,1749274245470,-153.0,0.00027123,2]
[364847743,1749274245480,-153.0,0.00027123,2]
[364847745,1749274245489,-153.0,0.00027123,2]
[364847747,1749274245499,-153.0,0.00027123,2]
[364847749,1749274245509,-153.0,0.00027123,2]
[364847751,1749274245518,-153.0,0.00027123,2]
[364847753,1749274245527,-153.0,0.00027123,2]
[364847755,1749274245536,-153.0,0.00027123,2]
[364847757,1749274245545,-153.0,0.00027123,2]
[364847759,1749274245555,-153.0,0.00027123,2]
[364847761,1749274245564,-153.0,0.00027123,2]
[364847763,1749274245574,-153.0,0.00027123,2]
[364847765,1749274245585,-153.0,0.00027123,2]
[364847767,1749274245595,-153.0,0.00027123,2]
[364847769,1749274245604,-153.0,0.00027123,2]
[364847771,1749274245613,-153.0,0.00027123,2]
[364847773,1749274245623,-153.0,0.00027123,2]
[364847775,1749274245632,-1000.0,0.00027123,3]
[364847777,1749274245641,-153.0,0.00027123,2]
[364847779,1749274245651,-1000.0,0.00027123,3]
[364847781,1749274245661,-153.0,0.00027123,2]
[364847783,1749274245670,-1000.0,0.00027123,3]
[364847785,1749274245679,-153.0,0.00027123,2]
[364847787,1749274245688,-1000.0,0.00027123,3]
[364847788,1749274245697,-153.0,0.00027123,2]
[364847790,1749274245706,-153.0,0.00027123,2]
[364847792,1749274245715,-1000.0,0.00027123,3]
[364847794,1749274245724,-153.0,0.00027123,2]
[364847796,1749274245733,-1000.0,0.00027123,3]
[364847798,1749274245742,-153.0,0.00027123,2]
[364847800,1749274245752,-1026.0,0.00027123,3]
[364847802,1749274245761,-153.0,0.00027123,2]
[364847804,1749274245770,-153.0,0.00027123,2]
[364847806,1749274245782,-153.0,0.00027123,2]
[364847808,1749274245792,-153.0,0.00027123,2]
[364847809,1749274245800,-189.0,0.00027123,2]
[364847810,1749274245809,-189.0,0.00027123,2]
[364847811,1749274245819,-189.0,0.00027123,2]
[364847812,1749274245828,-189.0,0.00027123,2]
[364847813,1749274245837,-189.0,0.00027123,2]
[364847814,1749274245846,-189.0,0.00027123,2]
[364847815,1749274245856,-189.0,0.00027123,2]
[364847816,1749274245865,-189.0,0.00027123,2]
[364847818,1749274245875,-189.0,0.00027123,2]
[364847819,1749274245885,-189.0,0.00027123,2]
[364847820,1749274245895,-189.0,0.00027123,2]
[364847821,1749274245904,-189.0,0.00027123,2]
[364847822,1749274245914,-189.0,0.00027123,2]
[364847823,1749274245923,-189.0,0.00027123,2]
[364847824,1749274245932,-189.0,0.00027123,2]
[364847825,1749274245942,-189.0,0.00027123,2]
[364847826,1749274245951,-189.0,0.00027123,2]
[364847827,1749274245960,-189.0,0.00027123,2]
[364847828,1749274245969,-189.0,0.00027123,2]
[364847829,1749274245978,-189.0,0.00027123,2]
[364847830,1749274245987,-189.0,0.00027123,2]
[364847831,1749274245996,-189.0,0.00027123,2]
[364847832,1749274246005,-189.0,0.00027123,2]
[364847833,1749274246014,-189.0,0.00027123,2]
[364847834,1749274246023,-189.0,0.00027123,2]
[364847835,1749274246033,-189.0,0.00027123,2]
[364847836,1749274246043,-189.0,0.00027123,2]
[364847837,1749274246053,-189.0,0.00027123,2]
[364847838,1749274246061,-189.0,0.00027123,2]
[364847839,1749274246071,-189.0,0.00027123,2]
[364847840,1749274246081,-189.0,0.00027123,2]
[364847841,1749274246091,-189.0,0.00027123,2]
[364847842,1749274246100,-189.0,0.00027123,2]
[364847843,1749274246109,-189.0,0.00027123,2]
[364847844,1749274246122,-189.0,0.00027123,2]
[364847845,1749274246131,-189.0,0.00027123,2]
[364847846,1749274246141,-189.0,0.00027123,2]
[364847847,1749274246150,-189.0,0.00027123,2]
[364847848,1749274246159,-189.0,0.00027123,2]
[364847849,1749274246169,-189.0,0.00027123,2]
[364847850,1749274246178,-189.0,0.00027123,2]
[364847851,1749274246189,-189.0,0.00027123,2]
[364847852,1749274246199,-189.0,0.00027123,2]
[364847853,1749274246209,-189.0,0.00027123,2]
[364847854,1749274246218,-189.0,0.00027123,2]
[364847855,1749274246228,-189.0,0.00027123,2]
[364847856,1749274246238,-189.0,0.00027123,2]
[364847857,1749274246248,-189.0,0.00027123,2]
[364847859,1749274246257,-189.0,0.00027123,2]
[364847861,1749274246267,-189.0,0.00027123,2]
[364847863,1749274246277,-189.0,0.00027123,2]
[364847865,1749274246286,-189.0,0.00027123,2]
[364847867,1749274246295,-189.0,0.00027123,2]
[364847868,1749274246304,-189.0,0.00027123,2]
[364847869,1749274246314,-189.0,0.00027123,2]
[364847870,1749274246323,-189.0,0.00027123,2]
[364847871,1749274246332,-189.0,0.00027123,2]
[364847872,1749274246341,-189.0,0.00027123,2]
[364847873,1749274246350,-189.0,0.00027123,2]
[364847874,1749274246359,-189.0,0.00027123,2]
[364847876,1749274246369,-189.0,0.00027123,2]
[364847878,1749274246378,-189.0,0.00027123,2]
[364847879,1749274246389,-189.0,0.00027123,2]
[364847880,1749274246403,-189.0,0.00027123,2]
[364847881,1749274246413,-189.0,0.00027123,2]
[364847882,1749274246422,-189.0,0.00027123,2]
[364847883,1749274246431,-189.0,0.00027123,2]
[364847884,1749274246440,-189.0,0.00027123,2]
[364847885,1749274246450,-189.0,0.00027123,2]
[364847886,1749274246459,-189.0,0.00027123,2]
[364847887,1749274246468,-189.0,0.00027123,2]
[364847888,1749274246478,-189.0,0.00027123,2]
[364847889,1749274246487,-1000.0,0.00027123,3]
[364847890,1749274246496,-1000.0,0.00027123,3]
[364847891,1749274246506,-1000.0,0.00027123,3]
[364847892,1749274246515,-1000.0,0.00027123,3]
[364847893,1749274246527,-1000.0,0.00027123,3]
[364847894,1749274246537,-1000.0,0.00027123,3]
[364847895,1749274246548,-1000.0,0.00027123,3]
[364847896,1749274246559,-1000.0,0.00027123,3]
[364847897,1749274246569,-1000.0,0.00027123,3]
[364847898,1749274246579,-1000.0,0.00027123,3]
[364847899,1749274246595,-1000.0,0.00027123,3]
[364847900,1749274246606,-1000.0,0.00027123,3]
[364847901,1749274246616,-1000.0,0.00027123,3]
[364847902,1749274246626,-1000.0,0.00027123,3]
[364847903,1749274246635,-1000.0,0.00027123,3]
[364847904,1749274246646,-1000.0,0.00027123,3]
[364847905,1749274246655,-1000.0,0.00027123,3]
[364847906,1749274246665,-1000.0,0.00027123,3]
[364847907,1749274246674,-1000.0,0.00027123,3]
[364847908,1749274246684,-1000.0,0.00027123,3]
[364847909,1749274246693,-229.0,0.00027123,3]
[364847910,1749274246703,-244.3276046,0.00027126,2]
[364847911,1749274246713,-500.0,0.00027128,2]
[364847912,1749274246722,-201.37534164,0.00027128,2]
[364847913,1749274246733,-500.0,0.00027128,2]
[364847914,1749274246742,-500.0,0.00027128,2]
[364847915,1749274246753,-500.0,0.00027128,2]
[364847916,1749274246762,-150.0,0.00027128,2]
[364847917,1749274246772,-500.0,0.00027128,2]
[364847918,1749274246782,-1671.0,0.00027128,2]
[364847919,1749274246792,-1120.0,0.00027128,2]
[364847920,1749274246802,-500.0,0.00027131,7]
[364847921,1749274246811,-500.0,0.00027131,7]
[364847922,1749274246821,-489.24798574,0.00027131,7]
[364847923,1749274246830,-500.0,0.00027131,7]
[364847924,1749274246839,-500.0,0.00027131,7]
[364847925,1749274246861,-500.0,0.00027131,7]
[364847926,1749274246873,-165.44350681,0.00027131,7]
[364847927,1749274246884,-982.439498,0.00027131,7]
[364847928,1749274246894,-982.439498,0.00027131,7]
[364847929,1749274246905,-11731.65577306,0.00027133,2]
[364847930,1749274246915,-1000.0,0.00027149,2]
[364847931,1749274246925,-150.98544314,0.00027151,30]
[364847932,1749274246936,-158.46912684,0.00027151,30]
[364847933,1749274246947,-500.0,0.00027155,2]
[364847934,1749274246957,-395.74451207,0.00027155,2]
[364847935,1749274246967,-500.0,0.00027155,2]
[364847936,1749274246977,-155.46701861,0.00027155,2]
[364847937,1749274246989,-150.0,0.00027155,2]
[364847938,1749274246999,-500.0,0.00027155,2]
[364847939,1749274247009,-1671.0,0.00027155,2]
[364847940,1749274247019,-1120.0,0.00027155,2]
[364847941,1749274247030,-500.0,0.00027158,7]
[364847942,1749274247040,-463.97218168,0.00027158,7]
[364847943,1749274247050,-500.0,0.00027158,7]
[364847944,1749274247062,-500.0,0.00027158,7]
[364847945,1749274247073,-500.0,0.00027158,7]
[364847946,1749274247083,-150.0,0.00027164,2]
[364847947,1749274247094,-150.0,0.00027169,2]
[364847948,1749274247104,-151.0,0.0002718,3]
[364847949,1749274247115,-408.46492253,0.00027183,2]
[364847950,1749274247125,-500.0,0.00027183,2]
[364847951,1749274247135,-150.0,0.00027183,2]
[364847952,1749274247147,-500.0,0.00027183,2]
[364847953,1749274247157,-1671.0,0.00027183,2]
[364847954,1749274247167,-1120.0,0.00027183,2]
[364847955,1749274247178,-260.0,0.00027185,7]
[364847956,1749274247188,-183.0,0.00027185,7]
[364847957,1749274247201,-500.0,0.00027186,7]
[364847958,1749274247211,-500.0,0.00027186,7]
[364847959,1749274247223,-500.0,0.00027186,7]
[364847960,1749274247234,-500.0,0.00027186,7]
[364847961,1749274247244,-1729.628,0.0002719,15]
[364847962,1749274247254,-190.71618356,0.0002719,15]
[364847963,1749274247273,-150.0,0.00027195,2]
[364847964,1749274247284,-1000.0,0.000272,2]
[364847965,1749274247295,-176.0067784,0.00027205,30]
[364847966,1749274247306,-410.68248293,0.00027205,30]
[364847967,1749274247317,-150.0,0.00027207,2]
[364847968,1749274247327,-500.0,0.0002721,2]
[364847969,1749274247339,-170.35901753,0.0002721,2]
[364847970,1749274247350,-500.0,0.0002721,2]
[364847971,1749274247361,-1671.0,0.0002721,2]
[364847972,1749274247372,-1120.0,0.0002721,2]
[364847973,1749274247383,-254.88450249,0.00027213,7]
[364847974,1749274247394,-500.0,0.00027213,7]
[364847975,1749274247405,-500.0,0.00027213,7]
[364847976,1749274247417,-500.0,0.00027213,7]
[364847977,1749274247431,-794.42067056,0.00027221,2]
[364847978,1749274247442,-150.0,0.00027221,2]
[364847979,1749274247453,-11731.65577306,0.00027222,2]
[364847980,1749274247464,-151.0,0.00027231,7]
[364847981,1749274247474,-151.0,0.00027231,7]